fUST/lending_fUST_20240522
["ID","MTS","AMOUNT","RATE_DAILY","PERIOD"]
[327717273,1716372646385,-1381.9611974,0.00019733,2]
[327717274,1716372646395,-1381.9611974,0.00019733,2]
[327717275,1716372646404,-1381.9611974,0.00019733,2]
[327717276,1716372646413,-1295.65164968,0.00019733,2]
[327717277,1716372646584,-86.30954772,0.00019733,2]
[327717278,1716372646595,-1381.9611974,0.00019733,2]
[327717279,1716372646604,-16022.67859956,0.00019733,5]
[327717280,1716372646615,-151.0,0.00019734,2]
[327717281,1716372646624,-151.0,0.00019734,2]
[327717282,1716372646635,-151.0,0.00019734,2]
[327717283,1716372646644,-151.0,0.00019734,2]
[327717284,1716372646654,-151.0,0.00019734,2]
[327717285,1716372646663,-151.0,0.00019735,2]
[327717286,1716372646673,-151.0,0.00019735,2]
[327717287,1716372646683,-156.424417,0.00019735,2]
[327717288,1716372646693,-151.0,0.00019735,2]
[327717289,1716372646702,-191.85799,0.00019735,2]
[327717290,1716372646712,-151.66789,0.00019735,2]
[327717291,1716372646722,-15208.11167478,0.00019736,5]
[327717296,1716372758365,8360.73076925,0.00018,7]
[327717302,1716372776229,2600.01933378,0.0001973,7]
[327717317,1716373646573,-435.89748243,0.0001973,7]
[327717318,1716373646624,-3291.64877134,0.0001973,7]
[327717319,1716373650405,-836.5562638,0.0001973,7]
[327717323,1716373655898,-5000.0,0.00019725,5]
[327717324,1716373658463,-5000.0,0.00019725,5]
[327717325,1716373664534,-2017.00894967,0.00019725,5]
[327717326,1716373664587,-965.98210066,0.00019727,5]
[327717327,1716373667167,-5000.0,0.00019727,5]
[327717328,1716373668592,-5000.0,0.00019727,5]
[327717329,1716373670620,-5000.0,0.00019727,5]
[327717330,1716373673599,-5000.0,0.00019727,5]
[327717333,1716373712889,9012.75671225,0.00019725,5]
[327717334,1716373713132,5987.24328775,0.00019632,5]
[327717335,1716373752556,-5000.0,0.00019632,5]
[327717336,1716373765919,-2188.93135604,0.00019632,5]
[327717337,1716373765943,-15622.13728792,0.00019632,5]
[327717370,1716373832516,-530.68111469,0.00017705,2]
[327717373,1716373832527,-9032.65178491,0.00017705,2]
[327717375,1716373832537,-2799.08594044,0.00017706,2]
[327717377,1716373832546,-14967.27002875,0.0001771,2]
[327717396,1716373832722,-953.59371321,0.0001771,2]
[327717468,1716373839569,-331.42175856,0.0001771,2]
[327717469,1716373839582,-2263.99752876,0.0001771,2]
[327717470,1716373839842,-49559.5367985,0.0001771,2]
[327717471,1716373839859,-6318.15911,0.00017711,2]
[327717472,1716373839870,-699.1886348,0.00018206,2]
[327717473,1716373839880,-5017.78872833,0.00018898,2]
[327717474,1716373839891,-909.43454892,0.000189,2]
[327717475,1716373839902,-1046.4253814,0.00019595,2]
[327717476,1716373839913,-323.34417898,0.00019631,2]
[327717477,1716373839925,-500.0,0.00019631,2]
[327717478,1716373839936,-500.0,0.00019631,2]
[327717479,1716373839946,-500.0,0.00019631,2]
[327717480,1716373839957,-505.72452746,0.00019631,2]
[327717481,1716373839967,-500.0,0.00019631,2]
[327717482,1716373839978,-500.0,0.00019631,2]
[327717483,1716373839988,-500.0,0.00019631,2]
[327717484,1716373839998,-500.0,0.00019631,2]
[327717485,1716373840009,-500.0,0.00019631,2]
[327717486,1716373840019,-500.0,0.00019631,2]
[327717487,1716373840030,-500.0,0.00019631,2]
[327717488,1716373840040,-500.0,0.00019631,2]
[327717489,1716373840051,-500.0,0.00019631,2]
[327717490,1716373840062,-294.4190118,0.00019631,2]
[327717491,1716373840073,-500.0,0.00019631,2]
[327717492,1716373840084,-500.0,0.00019631,2]
[327717493,1716373840094,-500.0,0.00019631,2]
[327717494,1716373840105,-500.0,0.00019631,2]
[327717495,1716373840115,-500.0,0.00019631,2]
[327717496,1716373840126,-500.0,0.00019631,2]
[327717497,1716373840136,-500.0,0.00019631,2]
[327717498,1716373840147,-500.0,0.00019631,2]
[327717499,1716373840157,-500.0,0.00019631,2]
[327717500,1716373840167,-500.0,0.00019631,2]
[327717501,1716373840177,-500.0,0.00019631,2]
[327717502,1716373840188,-500.0,0.00019631,2]
[327717503,1716373840199,-500.0,0.00019631,2]
[327717504,1716373840209,-500.0,0.00019631,2]
[327717505,1716373840220,-500.0,0.00019631,2]
[327717506,1716373840231,-500.0,0.00019631,2]
[327717507,1716373840241,-500.0,0.00019631,2]
[327717508,1716373840252,-500.0,0.00019631,2]
[327717509,1716373840262,-500.0,0.00019631,2]
[327717510,1716373840273,-367.29094805,0.00019631,2]
[327717511,1716373840283,-500.0,0.00019631,2]
[327717512,1716373840293,-21598.73394878,0.00019632,5]
[327717513,1716373840304,-16153.86918841,0.00019632,2]
[327717514,1716373840315,-365.089081,0.00019632,2]
[327717515,1716373840326,-234.39746541,0.00019632,2]
[327717516,1716373840336,-3374.24693945,0.00019632,2]
[327717517,1716373840347,-19258.66211697,0.00019632,2]
[327717518,1716373840358,-281.67342529,0.00019632,2]
[327717519,1716373840368,-18842.08118746,0.00019632,2]
[327717525,1716373841168,-14096.64158539,0.00019632,2]
[327717526,1716373841178,-417.32360569,0.00019676,2]
[327717527,1716373841188,-4224.86010977,0.00019718,2]
[327717528,1716373841198,-4481.77707908,0.00019724,5]
[327717529,1716373841213,-2277.79045511,0.00019724,5]
[327717530,1716373841223,-151.0,0.00019725,2]
[327717531,1716373841232,-151.0,0.00019725,2]
[327717532,1716373841242,-151.0,0.00019725,2]
[327717533,1716373841252,-162.193588,0.00019725,2]
[327717534,1716373841262,-151.0,0.00019725,2]
[327717535,1716373841271,-153.532321,0.00019725,2]
[327717536,1716373841281,-151.0,0.00019725,2]
[327717537,1716373841291,-151.0,0.00019725,2]
[327717538,1716373841300,-151.0,0.00019725,2]
[327717539,1716373841310,-151.927443,0.00019725,2]
[327717540,1716373841319,-245.966898,0.00019725,2]
[327717541,1716373841329,-245.966898,0.00019725,2]
[327717542,1716373841339,-245.966898,0.00019725,2]
[327717543,1716373841349,-245.966898,0.00019725,2]
[327717544,1716373841360,-245.966898,0.00019725,2]
[327717545,1716373841370,-245.966898,0.00019725,2]
[327717546,1716373841381,-245.966898,0.00019725,2]
[327717547,1716373841515,-245.966898,0.00019725,2]
[327717548,1716373841525,-245.966898,0.00019725,2]
[327717549,1716373841535,-245.966898,0.00019725,2]
[327717550,1716373841544,-245.966898,0.00019725,2]
[327717551,1716373841555,-245.966898,0.00019725,2]
[327717552,1716373841565,-245.966898,0.00019725,2]
[327717553,1716373841575,-245.966898,0.00019725,2]
[327717554,1716373841585,-151.0,0.00019725,2]
[327717555,1716373841595,-245.966898,0.00019725,2]
[327717556,1716373841604,-151.0,0.00019725,2]
[327717557,1716373841615,-245.966898,0.00019725,2]
[327717558,1716373841624,-151.0,0.00019725,2]
[327717559,1716373841634,-151.0,0.00019726,2]
[327717560,1716373841644,-151.0,0.00019726,2]
[327717561,1716373841654,-151.0,0.00019726,2]
[327717562,1716373841663,-151.0,0.00019726,2]
[327717563,1716373841673,-151.0,0.00019726,2]
[327717564,1716373841683,-151.0,0.00019726,2]
[327717565,1716373841692,-151.0,0.00019726,2]
[327717566,1716373841701,-151.0,0.00019726,2]
[327717567,1716373841711,-151.0,0.00019726,2]
[327717568,1716373841722,-233.376688,0.00019726,2]
[327717569,1716373841731,-157.299899,0.00019726,2]
[327717570,1716373841740,-157.299899,0.00019726,2]
[327717571,1716373841750,-157.299899,0.00019726,2]
[327717572,1716373841759,-157.299899,0.00019726,2]
[327717573,1716373841769,-157.299899,0.00019726,2]
[327717574,1716373841779,-157.299899,0.00019726,2]
[327717575,1716373841788,-157.299899,0.00019726,2]
[327717576,1716373841798,-157.299899,0.00019726,2]
[327717577,1716373841809,-157.299899,0.00019726,2]
[327717578,1716373841818,-103.5016838,0.00019726,2]
[327717579,1716373842455,-53.7982152,0.00019726,2]
[327717580,1716373842466,-157.299899,0.00019726,2]
[327717581,1716373842476,-157.299899,0.00019726,2]
[327717582,1716373842486,-157.299899,0.00019726,2]
[327717583,1716373842496,-157.299899,0.00019726,2]
[327717584,1716373842506,-157.299899,0.00019726,2]
[327717585,1716373842516,-157.299899,0.00019726,2]
[327717586,1716373842526,-226.358755,0.00019726,2]
[327717587,1716373842536,-226.358755,0.00019726,2]
[327717588,1716373842547,-226.358755,0.00019726,2]
[327717589,1716373842557,-226.358755,0.00019726,2]
[327717590,1716373842566,-226.358755,0.00019726,2]
[327717591,1716373842576,-91.2097991,0.00019726,2]
[327717592,1716373843029,-135.1489559,0.00019726,2]
[327717593,1716373843041,-226.358755,0.00019726,2]
[327717594,1716373843051,-226.358755,0.00019726,2]
[327717595,1716373843060,-226.358755,0.00019726,2]
[327717596,1716373843070,-226.358755,0.00019726,2]
[327717597,1716373843080,-226.358755,0.00019726,2]
[327717598,1716373843089,-226.358755,0.00019726,2]
[327717599,1716373843099,-226.358755,0.00019726,2]
[327717600,1716373843108,-226.358755,0.00019726,2]
[327717601,1716373843117,-226.358755,0.00019726,2]
[327717602,1716373843127,-226.358755,0.00019726,2]
[327717603,1716373843136,-279.921663,0.00019726,2]
[327717604,1716373843145,-279.921663,0.00019726,2]
[327717605,1716373843154,-279.921663,0.00019726,2]
[327717606,1716373843164,-279.921663,0.00019726,2]
[327717607,1716373843174,-279.921663,0.00019726,2]
[327717608,1716373843186,-279.921663,0.00019726,2]
[327717609,1716373843208,-279.921663,0.00019726,2]
[327717610,1716373843225,-279.921663,0.00019726,2]
[327717611,1716373843246,-279.921663,0.00019726,2]
[327717612,1716373843265,-279.921663,0.00019726,2]
[327717613,1716373843286,-279.921663,0.00019726,2]
[327717614,1716373843304,-279.921663,0.00019726,2]
[327717615,1716373843322,-279.921663,0.00019726,2]
[327717616,1716373843337,-279.921663,0.00019726,2]
[327717617,1716373843354,-279.921663,0.00019726,2]
[327717618,1716373843372,-279.921663,0.00019726,2]
[327717619,1716373843390,-279.921663,0.00019726,2]
[327717620,1716373843402,-279.921663,0.00019726,2]
[327717621,1716373843419,-279.921663,0.00019726,2]
[327717622,1716373843433,-279.92165978,0.00019726,2]
[327717623,1716373843450,-151.0,0.00019727,2]
[327717624,1716373843463,-151.0,0.00019727,2]
[327717625,1716373843479,-151.0,0.00019727,2]
[327717626,1716373843493,-151.0,0.00019727,2]
[327717627,1716373843508,-151.0,0.00019727,2]
[327717628,1716373843524,-205.414735,0.00019727,2]
[327717629,1716373843539,-151.0,0.00019727,2]
[327717630,1716373843555,-151.0,0.00019727,2]
[327717631,1716373843572,-151.0,0.00019727,2]
[327717632,1716373843587,-151.0,0.00019727,2]
[327717633,1716373843605,-152.47377,0.00019727,2]
[327717634,1716373843622,-151.0,0.00019727,2]
[327717635,1716373843639,-151.0,0.00019727,2]
[327717636,1716373843654,-151.0,0.00019727,2]
[327717637,1716373843670,-151.0,0.00019727,2]
[327717638,1716373843687,-151.0,0.00019727,2]
[327717639,1716373843703,-151.0,0.00019727,2]
[327717640,1716373843718,-151.0,0.00019727,2]
[327717641,1716373843734,-293.948438,0.00019727,2]
[327717642,1716373843750,-157.299899,0.00019727,2]
[327717643,1716373843765,-157.299899,0.00019727,2]
[327717644,1716373843780,-226.358755,0.00019727,2]
[327717645,1716373843796,-226.358755,0.00019727,2]
[327717646,1716373843811,-245.966898,0.00019727,2]
[327717647,1716373843826,-245.966898,0.00019727,2]
[327717648,1716373843841,-151.0,0.00019728,2]
[327717649,1716373843859,-151.0,0.00019728,2]
[327717650,1716373843874,-151.0,0.00019728,2]
[327717651,1716373843890,-289.15406,0.00019728,2]
[327717652,1716373843906,-151.753514,0.00019728,2]
[327717653,1716373843921,-151.0,0.00019728,2]
[327717654,1716373843939,-151.0,0.00019728,2]
[327717655,1716373843954,-151.0,0.00019728,2]
[327717656,1716373843970,-151.0,0.00019728,2]
[327717657,1716373843985,-151.0,0.00019728,2]
[327717658,1716373844000,-151.0,0.00019728,2]
[327717659,1716373844015,-151.0,0.00019728,2]
[327717660,1716373844031,-151.0,0.00019728,2]
[327717661,1716373844047,-151.0,0.00019728,2]
[327717662,1716373844063,-151.0,0.00019728,2]
[327717663,1716373844080,-151.0,0.00019728,2]
[327717664,1716373844091,-178.510264,0.00019728,2]
[327717665,1716373844101,-151.0,0.00019728,2]
[327717666,1716373844112,-151.0,0.00019728,2]
[327717667,1716373844122,-155.198445,0.00019728,2]
[327717668,1716373844131,-151.0,0.00019728,2]
[327717669,1716373844141,-151.0,0.00019728,2]
[327717675,1716373844340,-151.0,0.00019728,2]
[327717676,1716373844367,-167.750062,0.00019728,2]
[327717677,1716373844380,-151.0,0.00019728,2]
[327717678,1716373844390,-151.0,0.00019728,2]
[327717679,1716373844400,-151.547111,0.00019728,2]
[327717680,1716373844411,-153.176804,0.00019728,2]
[327717681,1716373844421,-151.0,0.00019729,2]
[327717682,1716373844430,-151.0,0.00019729,2]
[327717684,1716373844440,-151.0,0.00019729,2]
[327717686,1716373844450,-25.63074127,0.00019729,2]
[327717688,1716373844467,-125.36925873,0.00019729,2]
[327717690,1716373844477,-217.235095,0.00019729,2]
[327717691,1716373844487,-151.0,0.00019729,2]
[327717693,1716373844497,-151.0,0.00019729,2]
[327717694,1716373844508,-153.300203,0.00019729,2]
[327717697,1716373844518,-157.299899,0.0001973,2]
[327717700,1716373844528,-157.299892,0.0001973,2]
[327717702,1716373844538,-226.358755,0.0001973,2]
[327717703,1716373844548,-226.358759,0.0001973,2]
[327717704,1716373844559,-245.966898,0.0001973,2]
[327717705,1716373844569,-245.966904,0.0001973,2]
[327717706,1716373844579,-275.88025216,0.00019731,2]
[327717707,1716373844590,-191.17529344,0.00019731,2]
[327717708,1716373844600,-284.036002,0.00019731,2]
[327717709,1716373844611,-151.155779,0.00019731,2]
[327717710,1716373844621,-151.0,0.00019731,2]
[327717711,1716373844631,-239.37725093,0.00019732,2]
[327717712,1716373844640,-151.0,0.00019774,2]
[327717713,1716373844649,-448.34355008,0.00019827,2]
[327717714,1716373844659,-2177.98605443,0.00019927,2]
[327717715,1716373844669,-151.0,0.00019948,2]
[327717716,1716373844678,-281.0,0.0002,2]
[327717717,1716373844688,-1000.0,0.0002,2]
[327717718,1716373844698,-1256.77598172,0.00020025,2]
[327717719,1716373844708,-155.36909116,0.00020025,2]
[327717720,1716373844717,-155.64325057,0.00020026,2]
[327717721,1716373844727,-1584.60894986,0.00020026,2]
[327717722,1716373844737,-274.96773396,0.00020026,2]
[327717723,1716373844746,-1755.73053112,0.00020027,2]
[327717724,1716373844757,-79.91754846,0.00020027,2]
[327717725,1716373844769,-1017.2980425,0.00020027,2]
[327717726,1716373844825,-6379.70926749,0.00020027,2]
[327717727,1716373845054,-5380.23107841,0.00020027,2]
[327717728,1716373845065,-6012.51357075,0.00020027,2]
[327717729,1716373845107,-0.00213502,0.00020027,2]
[327717744,1716373869679,150.95471359,0.00023298,120]
[327717745,1716373897144,3326.8874724,0.00019628,7]
[327717785,1716374437948,150.95471359,0.00023044,120]
[327717788,1716374496585,1000.0,0.00023,30]
[327717807,1716374722468,888.0,0.00026505,120]
[327717862,1716374891312,150.95471359,0.00023168,120]
[327718105,1716375033046,-10432.63282907,0.00018385,2]
[327718108,1716375033056,-26154.82441288,0.00018386,2]
[327718132,1716375039396,-11546.85799003,0.00018386,2]
[327718138,1716375041045,-501.98208771,0.00018386,2]
[327718143,1716375044147,-29872.15533716,0.00018386,2]
[327718144,1716375044157,-1681.4844931,0.00018388,2]
[327718146,1716375044167,-990.35684707,0.00018391,2]
[327718148,1716375044176,-1350.28146711,0.00019388,2]
[327718149,1716375044186,-157.845843,0.00019393,2]
[327718150,1716375044196,-154.98450155,0.00019493,2]
[327718151,1716375044206,-104.8324545,0.00019494,2]
[327718152,1716375044219,-132.0129015,0.00019494,2]
[327718153,1716375044230,-953.29958144,0.00019522,2]
[327718154,1716375044244,-155.36056009,0.00019523,2]
[327718155,1716375044253,-639.92,0.00019609,3]
[327718156,1716375044263,-500.0,0.00019618,2]
[327718157,1716375044273,-2907.55296114,0.00019618,2]
[327718158,1716375044283,-91.59625817,0.00019618,2]
[327718159,1716375044527,-408.40374183,0.00019618,2]
[327718160,1716375044536,-344.22615392,0.00019618,2]
[327718161,1716375044546,-2907.55296114,0.00019618,2]
[327718162,1716375044555,-500.0,0.00019618,2]
[327718163,1716375044565,-500.0,0.00019618,2]
[327718164,1716375044574,-1574.86194886,0.00019618,2]
[327718171,1716375047151,-4929.95040191,0.00019617,2]
[327718172,1716375047162,-1332.69101228,0.00019618,2]
[327718173,1716375047171,-2907.55296114,0.00019618,2]
[327718174,1716375047181,-2907.55296114,0.00019618,2]
[327718175,1716375047191,-167.39730595,0.00019618,2]
[327718176,1716375047202,-500.0,0.00019618,2]
[327718177,1716375047211,-2907.55296114,0.00019618,2]
[327718178,1716375047220,-2907.55296114,0.00019618,2]
[327718179,1716375047235,-500.0,0.00019618,2]
[327718180,1716375047245,-2907.55296114,0.00019618,2]
[327718181,1716375047255,-500.0,0.00019618,2]
[327718182,1716375047266,-2907.55296114,0.00019618,2]
[327718183,1716375047276,-2907.55296114,0.00019618,2]
[327718184,1716375047286,-2907.55296114,0.00019618,2]
[327718185,1716375047295,-2907.55296114,0.00019618,2]
[327718186,1716375047306,-2907.55296114,0.00019618,2]
[327718187,1716375047317,-2907.55296114,0.00019618,2]
[327718188,1716375047326,-2907.55296114,0.00019618,2]
[327718189,1716375047336,-1908.31495486,0.00019618,2]
[327718190,1716375047385,-999.23800628,0.00019618,2]
[327718191,1716375047395,-2740.65958519,0.00019618,2]
[327718194,1716375234834,201.08,0.00026505,120]
[327718196,1716375362539,150.93962415,0.00023454,120]
[327718936,1716376243361,-4224.86010977,0.00019357,2]
[327718939,1716376243371,-6663.80646353,0.00019608,2]
[327719150,1716376246280,-61412.01336425,0.00019608,2]
[327719152,1716376246290,-154.9421147,0.00019608,2]
[327719153,1716376246300,-361.81120882,0.00019608,2]
[327719155,1716376246310,-2124.13607327,0.00019608,2]
[327719157,1716376246320,-500.0,0.00019608,2]
[327719159,1716376246330,-2124.13607327,0.00019608,2]
[327719161,1716376246340,-450.21919179,0.00019608,2]
[327719163,1716376246350,-827.07148138,0.00019608,2]
[327719580,1716377136077,-606.28969928,0.000189,2]
[327719581,1716377136099,-150.50820687,0.00019,2]
[327719582,1716377166089,234.39746541,0.00019,2]
[327719583,1716377173405,14765.60253459,0.00019,2]
[327719584,1716377173427,1388.26665382,0.00019,2]
[327719585,1716377179736,3374.24693945,0.00019,2]
[327719586,1716377179942,295.32834245,0.00019,2]
[327719587,1716377182830,365.089081,0.00019,2]
[327719588,1716377191706,7003.58015614,0.00019,2]
[327719589,1716377195795,3374.24693945,0.00019,2]
[327719590,1716377200850,365.089081,0.00019,2]
[327719591,1716377210635,1042.3867118,0.000189,2]
[327719592,1716377211733,2915.02608956,0.00019,2]
[327719594,1716377216858,365.089081,0.00019,2]
[327719595,1716377234865,365.089081,0.00019,2]
[327719598,1716377252841,365.089081,0.00019,2]
[327719599,1716377268841,362.68438391,0.00019,2]
[327719785,1716377440208,-164.82436224,0.00019239,2]
[327719787,1716377440219,-4224.86010977,0.00019251,2]
[327719789,1716377440230,-164.82436223,0.00019293,2]
[327719791,1716377440241,-319.96,0.00019333,3]
[327719793,1716377440251,-68075.81982778,0.00019338,2]
[327719796,1716377440262,-500.0,0.0001934,2]
[327719799,1716377440272,-500.0,0.0001934,2]
[327719802,1716377440283,-500.0,0.0001934,2]
[327719805,1716377440293,-2923.22289765,0.0001934,2]
[327719808,1716377440303,-500.0,0.0001934,2]
[327719810,1716377440313,-195.48120288,0.0001934,2]
[327719812,1716377440323,-500.0,0.0001934,2]
[327719815,1716377440333,-500.0,0.0001934,2]
[327719817,1716377440343,-2923.22289765,0.0001934,2]
[327719819,1716377440356,-2923.22289765,0.0001934,2]
[327719821,1716377440366,-2923.22289765,0.0001934,2]
[327719822,1716377440376,-500.0,0.0001934,2]
[327719824,1716377440386,-2923.22289765,0.0001934,2]
[327719826,1716377440396,-321.66194071,0.0001934,2]
[327719828,1716377440406,-2923.22289765,0.0001934,2]
[327719830,1716377440416,-500.0,0.0001934,2]
[327719831,1716377440426,-2923.22289765,0.0001934,2]
[327719832,1716377440437,-500.0,0.0001934,2]
[327719833,1716377440448,-500.0,0.0001934,2]
[327719834,1716377440457,-500.0,0.0001934,2]
[327719835,1716377440467,-500.0,0.0001934,2]
[327719836,1716377440476,-500.0,0.0001934,2]
[327719837,1716377440486,-2923.22289765,0.0001934,2]
[327719838,1716377440497,-500.0,0.0001934,2]
[327719839,1716377440507,-2923.22289765,0.0001934,2]
[327719840,1716377440517,-2923.22289765,0.0001934,2]
[327719841,1716377440527,-2923.22289765,0.0001934,2]
[327719842,1716377440538,-2923.22289765,0.0001934,2]
[327719843,1716377440548,-2923.22289765,0.0001934,2]
[327719844,1716377440558,-260.42941891,0.0001934,2]
[327719845,1716377440568,-2923.22289765,0.0001934,2]
[327719846,1716377440578,-2923.22289765,0.0001934,2]
[327719847,1716377440588,-2923.22289765,0.0001934,2]
[327719848,1716377440599,-2923.22289765,0.0001934,2]
[327719849,1716377440609,-2923.22289765,0.0001934,2]
[327719850,1716377440620,-10327.11706612,0.00019341,5]
[327719851,1716377440631,-29361.24831029,0.00019341,5]
[327719852,1716377440640,-164.82436223,0.00019348,2]
[327719853,1716377440650,-164.82436223,0.00019402,2]
[327719854,1716377440660,-1968.81706477,0.00019502,2]
[327719855,1716377440671,-3596.55013945,0.00019598,2]
[327719856,1716377440683,-807.53529323,0.000196,2]
[327719858,1716377440693,-153.0,0.000196,2]
[327719859,1716377440704,-155.513861,0.000196,2]
[327719861,1716377440715,-151.0,0.00019601,2]
[327719862,1716377440726,-151.0,0.00019603,2]
[327719863,1716377440736,-151.0,0.00019603,2]
[327719864,1716377440747,-151.0,0.00019603,2]
[327719865,1716377440757,-151.0,0.00019603,2]
[327719866,1716377440767,-151.0,0.00019603,2]
[327719867,1716377440778,-233.718913,0.00019603,2]
[327719868,1716377440788,-151.0,0.00019608,2]
[327719869,1716377440798,-154.96872891,0.00019615,2]
[327719870,1716377440808,-154.96214802,0.00019615,2]
[327719871,1716377440818,-1237.21504517,0.00019628,7]
[327719872,1716377440829,-1884.25402905,0.00019629,2]
[327719873,1716377440839,-354.40184847,0.00019632,2]
[327719874,1716377440849,-6915.09572806,0.00019632,2]
[327719875,1716377440859,-153.2659694,0.000197,2]
[327719876,1716377440869,-153.0,0.000197,2]
[327719877,1716377440879,-294.6065359,0.000197,2]
[327719878,1716377440889,-153.0,0.000197,2]
[327719879,1716377440899,-153.0,0.000197,2]
[327719880,1716377440909,-153.0,0.000197,2]
[327719881,1716377440919,-153.0,0.000197,2]
[327719882,1716377440929,-153.0,0.000197,2]
[327719883,1716377440939,-153.0,0.000197,2]
[327719884,1716377440950,-153.0,0.000197,2]
[327719885,1716377440959,-153.0,0.000197,2]
[327719886,1716377440970,-1732.60792634,0.00019724,2]
[327719887,1716377440980,-462.38072469,0.00019826,2]
[327719888,1716377440990,-20883.30655731,0.0002,2]
[327719889,1716377441001,-281.0,0.0002,2]
[327719890,1716377441011,-154.94936632,0.0002,2]
[327719891,1716377441021,-151.0,0.0002,2]
[327719892,1716377441031,-527.39256429,0.0002,4]
[327719893,1716377441043,-280.14272894,0.0002,2]
[327719894,1716377441052,-1395.37486582,0.00020026,2]
[327719895,1716377441063,-236.16177318,0.00020046,2]
[327719896,1716377441072,-175.17175445,0.00020046,2]
[327719898,1716377441086,-187.72448335,0.00020046,2]
[327719899,1716377441097,-234.08725239,0.00020046,2]
[327719900,1716377441108,-333.28253777,0.00020046,2]
[327719901,1716377441117,-1403.57326883,0.00020047,2]
[327719902,1716377441127,-14400.02900761,0.00020072,5]
[327719903,1716377441138,-44214.51960655,0.00020603,3]
[327719904,1716377441148,-151.0,0.00020603,2]
[327719905,1716377441158,-3885.0060237,0.00020802,2]
[327719906,1716377441167,-3885.00602366,0.00020802,2]
[327719907,1716377441177,-3885.00602366,0.00020802,2]
[327719908,1716377441187,-3885.00602366,0.00020802,2]
[327719909,1716377441198,-3885.00602366,0.00020802,2]
[327719910,1716377441207,-3885.00602366,0.00020803,2]
[327719911,1716377441216,-3885.00602366,0.00020803,2]
[327719912,1716377441226,-3885.00602366,0.00020803,2]
[327719913,1716377441235,-3885.00602366,0.00020803,2]
[327719914,1716377441248,-3885.00602366,0.00020803,2]
[327719915,1716377441258,-151.0,0.00020803,2]
[327719916,1716377441268,-1051.7294077,0.00021,2]
[327719917,1716377441278,-10000.0,0.00021,5]
[327719918,1716377441288,-590.0,0.000211,2]
[327719919,1716377441298,-3000.0,0.000215,2]
[327719920,1716377441309,-3000.0,0.0002151,2]
[327719921,1716377441319,-151.0,0.0002152,2]
[327719922,1716377441328,-3000.0,0.0002152,2]
[327719923,1716377441339,-3000.0,0.0002153,2]
[327719924,1716377441349,-3000.0,0.0002154,2]
[327719925,1716377441359,-3000.0,0.0002155,2]
[327719926,1716377441369,-3000.0,0.0002156,2]
[327719927,1716377441379,-3000.0,0.0002157,2]
[327719928,1716377441389,-3000.0,0.0002158,2]
[327719929,1716377441399,-3000.0,0.0002159,2]
[327719930,1716377441411,-3000.0,0.000216,2]
[327719931,1716377441420,-3000.0,0.0002161,2]
[327719932,1716377441430,-151.0,0.0002162,2]
[327719933,1716377441440,-3000.0,0.0002162,2]
[327719934,1716377441450,-3000.0,0.0002163,2]
[327719935,1716377441460,-3000.0,0.0002164,2]
[327719936,1716377441470,-3000.0,0.0002165,2]
[327719937,1716377441480,-3000.0,0.0002166,2]
[327719938,1716377441492,-3000.0,0.0002167,2]
[327719939,1716377441503,-3000.0,0.0002168,2]
[327719940,1716377441514,-3000.0,0.0002169,2]
[327719941,1716377441524,-3000.0,0.000217,2]
[327719942,1716377441534,-150.0,0.00021702,2]
[327719943,1716377441544,-3000.0,0.0002171,2]
[327719944,1716377441554,-3000.0,0.0002172,2]
[327719945,1716377441564,-3000.0,0.0002173,2]
[327719946,1716377441575,-3000.0,0.0002174,2]
[327719947,1716377441585,-3000.0,0.0002175,2]
[327719948,1716377441595,-3000.0,0.0002176,2]